[Event "Titled Tuesday Blitz July 11 Late 2023"]
[White "Campos, Maria Jose"]
[Black "UgarteCesar"]
[WhiteFideId "146803"]
[WhiteElo "2366"]
[BlackElo "2192"]
[Result "1-0"]
[Round "10"]
[TimeControl "180+2"]
[Date "2023.07.11"]
[WhiteClock "0:01:54"]
[BlackClock "0:00:07"]
[Board "105"]

1. c4 {[%clk 0:02:57]}  e6 {[%clk 0:02:59]} 2. g3 {[%clk 0:02:57]}  d5 {[%clk 0:03:00]} 3. Bg2 {[%clk 0:02:57]}  Nf6 {[%clk 0:03:01]} 4. Nf3 {[%clk 0:02:58]}  Nbd7 {[%clk 0:03:01]} 5. O-O {[%clk 0:02:59]}  dxc4 {[%clk 0:03:02]} 6. Qc2 {[%clk 0:02:57]}  a6 {[%clk 0:03:02]} 7. Qxc4 {[%clk 0:02:57]}  b5 {[%clk 0:03:02]} 8. Qb3 {[%clk 0:02:56]}  Bb7 {[%clk 0:03:01]} 9. d3 {[%clk 0:02:56]}  c5 {[%clk 0:03:01]} 10. Bg5 {[%clk 0:02:55]}  Be7 {[%clk 0:03:00]} 11. Rd1 {[%clk 0:02:54]}  h6 {[%clk 0:02:59]} 12. Bf4 {[%clk 0:02:54]}  O-O {[%clk 0:02:59]} 13. a4 {[%clk 0:02:54]}  b4 {[%clk 0:02:59]} 14. Nbd2 {[%clk 0:02:49]}  Rc8 {[%clk 0:02:59]} 15. Nc4 {[%clk 0:02:49]}  Nd5 {[%clk 0:02:58]} 16. Bd2 {[%clk 0:02:48]}  Bf6 {[%clk 0:02:53]} 17. a5 {[%clk 0:02:45]}  Rc7 {[%clk 0:02:48]} 18. h4 {[%clk 0:02:41]}  Qa8 {[%clk 0:02:46]} 19. e4 {[%clk 0:02:38]}  Ne7 {[%clk 0:02:26]} 20. Rac1 {[%clk 0:02:36]}  Nc6 {[%clk 0:02:24]} 21. Bf4 {[%clk 0:02:35]}  e5 {[%clk 0:02:19]} 22. Be3 {[%clk 0:02:35]}  Nd4 {[%clk 0:02:18]} 23. Bxd4 {[%clk 0:02:32]}  exd4 {[%clk 0:02:15]} 24. Rc2 {[%clk 0:02:29]}  Bc6 {[%clk 0:02:03]} 25. Rdc1 {[%clk 0:02:28]}  Qe8 {[%clk 0:01:46]} 26. Qa2 {[%clk 0:02:18]}  Qe6 {[%clk 0:01:40]} 27. b3 {[%clk 0:02:14]}  g5 {[%clk 0:01:33]} 28. hxg5 {[%clk 0:02:14]}  hxg5 {[%clk 0:01:34]} 29. Nb6 {[%clk 0:02:10]}  Be7 {[%clk 0:01:24]} 30. Nd5 {[%clk 0:02:09]}  Bxd5 {[%clk 0:01:21]} 31. exd5 {[%clk 0:02:09]}  Qxd5 {[%clk 0:01:21]} 32. Re1 {[%clk 0:02:06]}  Bf6 {[%clk 0:01:15]} 33. Ne5 {[%clk 0:02:04]}  Qd6 {[%clk 0:01:10]} 34. Nc4 {[%clk 0:02:04]}  Qe6 {[%clk 0:00:36]} 35. Rxe6 {[%clk 0:02:02]}  fxe6 {[%clk 0:00:37]} 36. Re2 {[%clk 0:01:59]}  Kf7 {[%clk 0:00:36]} 37. Qd2 {[%clk 0:01:58]}  e5 {[%clk 0:00:31]} 38. Bf3 {[%clk 0:01:57]}  Rh8 {[%clk 0:00:29]} 39. Bg4 {[%clk 0:01:57]}  Re8 {[%clk 0:00:25]} 40. Kg2 {[%clk 0:01:56]}  Kg6 {[%clk 0:00:20]} 41. Qe1 {[%clk 0:01:56]}  Re7 {[%clk 0:00:14]} 42. Qh1 {[%clk 0:01:54]}  Rh7 {[%clk 0:00:13]} 43. Bf5+ {[%clk 0:01:53]}  Kxf5 {[%clk 0:00:07]} 44. Qxh7+ {[%clk 0:01:54]} 1-0


[Site "https://www.chess.com"]

[Event "Titled Tuesday Blitz July 11 Late 2023"]
[White "Weisz, Bryan"]
[Black "Oliveira, Tiago Batista"]
[WhiteFideId "30934133"]
[BlackFideId "2108291"]
[WhiteElo "2313"]
[BlackElo "2155"]
[Result "1-0"]
[Round "10"]
[TimeControl "180+2"]
[Date "2023.07.11"]
[WhiteClock "0:00:36"]
[BlackClock "0:00:00"]
[Board "107"]

1. e3 {[%clk 0:02:51]}  Nf6 {[%clk 0:02:51]} 2. Ke2 {[%clk 0:02:51]}  g6 {[%clk 0:02:50]} 3. Qe1 {[%clk 0:02:51]}  Bg7 {[%clk 0:02:49]} 4. Kd1 {[%clk 0:02:52]}  d5 {[%clk 0:02:48]} 5. d3 {[%clk 0:02:52]}  O-O {[%clk 0:02:48]} 6. Nd2 {[%clk 0:02:52]}  c5 {[%clk 0:02:48]} 7. h3 {[%clk 0:02:48]}  Nc6 {[%clk 0:02:48]} 8. g4 {[%clk 0:02:48]}  e5 {[%clk 0:02:48]} 9. Bg2 {[%clk 0:02:49]}  Re8 {[%clk 0:02:46]} 10. Ne2 {[%clk 0:02:49]}  e4 {[%clk 0:02:46]} 11. d4 {[%clk 0:02:46]}  cxd4 {[%clk 0:02:44]} 12. Nxd4 {[%clk 0:02:43]}  Nxd4 {[%clk 0:02:23]} 13. exd4 {[%clk 0:02:43]}  Nxg4 {[%clk 0:02:19]} 14. c3 {[%clk 0:02:20]}  e3 {[%clk 0:01:47]} 15. hxg4 {[%clk 0:02:16]}  exd2 {[%clk 0:01:10]} 16. Qxd2 {[%clk 0:02:16]}  Bxg4+ {[%clk 0:01:06]} 17. f3 {[%clk 0:02:13]}  Bf5 {[%clk 0:00:54]} 18. Qg5 {[%clk 0:02:03]}  Qb6 {[%clk 0:00:49]} 19. f4 {[%clk 0:01:47]}  Qb5 {[%clk 0:00:47]} 20. Bf1 {[%clk 0:01:33]}  Qd7 {[%clk 0:00:40]} 21. Qh4 {[%clk 0:01:23]}  h5 {[%clk 0:00:37]} 22. a4 {[%clk 0:01:22]}  Bg4+ {[%clk 0:00:34]} 23. Kc2 {[%clk 0:01:23]}  Qf5+ {[%clk 0:00:33]} 24. Bd3 {[%clk 0:01:22]}  Re2+ {[%clk 0:00:18]} 25. Bd2 {[%clk 0:01:23]}  Rxd2+ {[%clk 0:00:18]} 26. Kxd2 {[%clk 0:01:21]}  Qxf4+ {[%clk 0:00:18]} 27. Kc2 {[%clk 0:01:20]}  Bh6 {[%clk 0:00:18]} 28. Qe1 {[%clk 0:01:14]}  Rc8 {[%clk 0:00:14]} 29. Rf1 {[%clk 0:00:54]}  Qxd4 {[%clk 0:00:14]} 30. Qe8+ {[%clk 0:00:54]}  Rxe8 {[%clk 0:00:13]} 31. cxd4 {[%clk 0:00:54]}  Bg7 {[%clk 0:00:12]} 32. Rae1 {[%clk 0:00:47]}  Rc8+ {[%clk 0:00:12]} 33. Kb3 {[%clk 0:00:48]}  Bxd4 {[%clk 0:00:12]} 34. Re7 {[%clk 0:00:48]}  Be6 {[%clk 0:00:11]} 35. Bxg6 {[%clk 0:00:45]}  Bc5 {[%clk 0:00:06]} 36. Bxf7+ {[%clk 0:00:41]}  Bxf7 {[%clk 0:00:04]} 37. Rexf7 {[%clk 0:00:41]}  d4 {[%clk 0:00:04]} 38. R7f5 {[%clk 0:00:37]}  b6 {[%clk 0:00:00]} 39. Rg1+ {[%clk 0:00:36]} 1-0


[Site "https://www.chess.com"]

[Event "Titled Tuesday Blitz July 11 Late 2023"]
[White "Elaisaz"]
[Black "Sainz Aguirre, Ignacio"]
[BlackFideId "5101727"]
[WhiteElo "2256"]
[BlackElo "2000"]
[Result "0-1"]
[Round "10"]
[TimeControl "180+2"]
[Date "2023.07.11"]
[WhiteClock "0:01:53"]
[BlackClock "0:02:01"]
[Board "108"]

1. d4 {[%clk 0:03:00]}  d5 {[%clk 0:02:58]} 2. c4 {[%clk 0:02:58]}  e6 {[%clk 0:02:59]} 3. Nc3 {[%clk 0:02:58]}  a6 {[%clk 0:02:56]} 4. cxd5 {[%clk 0:02:52]}  exd5 {[%clk 0:02:55]} 5. g3 {[%clk 0:02:51]}  Nf6 {[%clk 0:02:43]} 6. Bg2 {[%clk 0:02:51]}  c6 {[%clk 0:02:35]} 7. Bg5 {[%clk 0:02:50]}  h6 {[%clk 0:02:33]} 8. Bxf6 {[%clk 0:02:49]}  Qxf6 {[%clk 0:02:32]} 9. e3 {[%clk 0:02:49]}  Bd6 {[%clk 0:02:25]} 10. Nf3 {[%clk 0:02:46]}  Bg4 {[%clk 0:02:23]} 11. h3 {[%clk 0:02:44]}  Bh5 {[%clk 0:02:22]} 12. g4 {[%clk 0:02:29]}  Bg6 {[%clk 0:02:21]} 13. Qd2 {[%clk 0:02:24]}  Nd7 {[%clk 0:02:17]} 14. O-O-O {[%clk 0:02:23]}  O-O-O {[%clk 0:02:17]} 15. Rhe1 {[%clk 0:02:18]}  Nb6 {[%clk 0:02:15]} 16. Ng1 {[%clk 0:02:03]}  Nc4 {[%clk 0:02:12]} 17. Qe2 {[%clk 0:02:00]}  Rhe8 {[%clk 0:02:03]} 18. b3 {[%clk 0:01:53]}  Ba3+ {[%clk 0:02:01]} 0-1


[Site "https://www.chess.com"]

[Event "Titled Tuesday Blitz July 11 Late 2023"]
[White "KorolDimitriy75"]
[Black "deloewre"]
[WhiteElo "2396"]
[BlackElo "2108"]
[Result "1-0"]
[Round "10"]
[TimeControl "180+2"]
[Date "2023.07.11"]
[WhiteClock "0:00:11"]
[BlackClock "0:00:00"]
[Board "110"]

1. d4 {[%clk 0:02:56]}  Nf6 {[%clk 0:02:58]} 2. c4 {[%clk 0:02:57]}  e6 {[%clk 0:02:56]} 3. Nc3 {[%clk 0:02:57]}  d5 {[%clk 0:02:55]} 4. Bg5 {[%clk 0:02:56]}  Be7 {[%clk 0:02:54]} 5. cxd5 {[%clk 0:02:57]}  exd5 {[%clk 0:02:53]} 6. e3 {[%clk 0:02:57]}  c6 {[%clk 0:02:51]} 7. Bd3 {[%clk 0:02:57]}  Nbd7 {[%clk 0:02:50]} 8. Qc2 {[%clk 0:02:57]}  Nh5 {[%clk 0:02:48]} 9. Bxe7 {[%clk 0:02:55]}  Qxe7 {[%clk 0:02:47]} 10. Nge2 {[%clk 0:02:52]}  g6 {[%clk 0:02:44]} 11. h3 {[%clk 0:02:50]}  Nb6 {[%clk 0:02:42]} 12. O-O {[%clk 0:02:48]}  Be6 {[%clk 0:02:36]} 13. f3 {[%clk 0:02:39]}  O-O {[%clk 0:02:34]} 14. e4 {[%clk 0:02:31]}  dxe4 {[%clk 0:02:21]} 15. fxe4 {[%clk 0:02:32]}  Nc4 {[%clk 0:02:14]} 16. Rf3 {[%clk 0:02:30]}  Ng7 {[%clk 0:02:02]} 17. Kh1 {[%clk 0:02:08]}  f5 {[%clk 0:02:00]} 18. d5 {[%clk 0:02:01]}  fxe4 {[%clk 0:01:56]} 19. Rxf8+ {[%clk 0:02:00]}  Rxf8 {[%clk 0:01:53]} 20. Bxc4 {[%clk 0:01:59]}  cxd5 {[%clk 0:01:51]} 21. Bxd5 {[%clk 0:01:42]}  Bxd5 {[%clk 0:01:50]} 22. Nxd5 {[%clk 0:01:42]}  Qe5 {[%clk 0:01:47]} 23. Ndc3 {[%clk 0:01:33]}  e3 {[%clk 0:01:31]} 24. Qe4 {[%clk 0:01:12]}  Qxe4 {[%clk 0:01:22]} 25. Nxe4 {[%clk 0:01:12]}  Rc8 {[%clk 0:01:17]} 26. N4c3 {[%clk 0:01:07]}  Nf5 {[%clk 0:01:12]} 27. Rd1 {[%clk 0:01:04]}  a6 {[%clk 0:01:08]} 28. Kh2 {[%clk 0:00:43]}  b5 {[%clk 0:01:07]} 29. a3 {[%clk 0:00:42]}  h5 {[%clk 0:00:55]} 30. g4 {[%clk 0:00:38]}  hxg4 {[%clk 0:00:54]} 31. hxg4 {[%clk 0:00:39]}  Nh4 {[%clk 0:00:49]} 32. Kg3 {[%clk 0:00:37]}  g5 {[%clk 0:00:48]} 33. Rd3 {[%clk 0:00:35]}  Rf8 {[%clk 0:00:32]} 34. Rxe3 {[%clk 0:00:34]}  Rf1 {[%clk 0:00:21]} 35. Ne4 {[%clk 0:00:15]}  Rb1 {[%clk 0:00:12]} 36. b4 {[%clk 0:00:14]}  Rb2 {[%clk 0:00:06]} 37. Nxg5 {[%clk 0:00:13]}  Ng6 {[%clk 0:00:00]} 38. Nf4 {[%clk 0:00:11]} 1-0


[Site "https://www.chess.com"]

[Event "Titled Tuesday Blitz July 11 Late 2023"]
[White "Hartikainen, Jarmo"]
[Black "Cluke86"]
[WhiteFideId "503134"]
[WhiteElo "2107"]
[BlackElo "2325"]
[Result "0-1"]
[Round "10"]
[TimeControl "180+2"]
[Date "2023.07.11"]
[WhiteClock "0:00:00"]
[BlackClock "0:00:35"]
[Board "111"]

1. e4 {[%clk 0:03:00]}  d6 {[%clk 0:02:58]} 2. d4 {[%clk 0:03:00]}  Nf6 {[%clk 0:02:58]} 3. Nc3 {[%clk 0:03:00]}  Nbd7 {[%clk 0:02:59]} 4. Nf3 {[%clk 0:02:59]}  e5 {[%clk 0:02:59]} 5. dxe5 {[%clk 0:02:52]}  dxe5 {[%clk 0:03:00]} 6. Be2 {[%clk 0:02:50]}  h6 {[%clk 0:02:50]} 7. O-O {[%clk 0:02:49]}  c6 {[%clk 0:02:48]} 8. h3 {[%clk 0:02:49]}  Qc7 {[%clk 0:02:46]} 9. Be3 {[%clk 0:02:42]}  Bc5 {[%clk 0:02:46]} 10. Qc1 {[%clk 0:02:23]}  Bb4 {[%clk 0:02:28]} 11. Bd3 {[%clk 0:02:03]}  Nf8 {[%clk 0:02:24]} 12. Ne2 {[%clk 0:01:53]}  g5 {[%clk 0:02:22]} 13. c3 {[%clk 0:01:52]}  Bd6 {[%clk 0:02:19]} 14. Nd2 {[%clk 0:01:32]}  Ng6 {[%clk 0:02:13]} 15. Nc4 {[%clk 0:01:23]}  g4 {[%clk 0:02:06]} 16. Nxd6+ {[%clk 0:01:20]}  Qxd6 {[%clk 0:02:07]} 17. hxg4 {[%clk 0:01:10]}  Qxd3 {[%clk 0:02:02]} 18. Ng3 {[%clk 0:01:08]}  Bxg4 {[%clk 0:01:47]} 19. f3 {[%clk 0:01:01]}  Be6 {[%clk 0:01:45]} 20. Rd1 {[%clk 0:01:00]}  Qa6 {[%clk 0:01:43]} 21. Qd2 {[%clk 0:00:51]}  Nd7 {[%clk 0:01:15]} 22. Nf5 {[%clk 0:00:47]}  O-O-O {[%clk 0:01:08]} 23. b4 {[%clk 0:00:26]}  Bxf5 {[%clk 0:01:06]} 24. exf5 {[%clk 0:00:24]}  Nf4 {[%clk 0:01:07]} 25. Bxf4 {[%clk 0:00:20]}  exf4 {[%clk 0:01:08]} 26. Qxf4 {[%clk 0:00:20]}  Rhg8 {[%clk 0:01:01]} 27. Rd2 {[%clk 0:00:16]}  Qb6+ {[%clk 0:01:00]} 28. Kh1 {[%clk 0:00:14]}  Nf6 {[%clk 0:00:59]} 29. Rad1 {[%clk 0:00:13]}  Rxd2 {[%clk 0:00:56]} 30. Rxd2 {[%clk 0:00:12]}  Qc7 {[%clk 0:00:55]} 31. Qxc7+ {[%clk 0:00:11]}  Kxc7 {[%clk 0:00:56]} 32. g4 {[%clk 0:00:09]}  Nd5 {[%clk 0:00:55]} 33. Rd3 {[%clk 0:00:08]}  Re8 {[%clk 0:00:53]} 34. a3 {[%clk 0:00:08]}  Re3 {[%clk 0:00:53]} 35. Rxe3 {[%clk 0:00:08]}  Nxe3 {[%clk 0:00:54]} 36. Kh2 {[%clk 0:00:09]}  Nd5 {[%clk 0:00:54]} 37. Kg3 {[%clk 0:00:09]}  Nxc3 {[%clk 0:00:54]} 38. f4 {[%clk 0:00:09]}  Ne4+ {[%clk 0:00:53]} 39. Kf3 {[%clk 0:00:08]}  Nd6 {[%clk 0:00:49]} 40. Kg3 {[%clk 0:00:07]}  a5 {[%clk 0:00:39]} 41. Kh4 {[%clk 0:00:07]}  axb4 {[%clk 0:00:38]} 42. axb4 {[%clk 0:00:07]}  b5 {[%clk 0:00:34]} 43. Kh5 {[%clk 0:00:06]}  c5 {[%clk 0:00:34]} 44. bxc5 {[%clk 0:00:00]}  Ne4 {[%clk 0:00:35]} 0-1


[Site "https://www.chess.com"]

[Event "Titled Tuesday Blitz July 11 Late 2023"]
[White "Gyulamiryan-koryun"]
[Black "Gazola, Vanessa Ramos"]
[BlackFideId "2112590"]
[WhiteElo "1872"]
[BlackElo "2039"]
[Result "0-1"]
[Round "10"]
[TimeControl "180+2"]
[Date "2023.07.11"]
[WhiteClock "0:00:21"]
[BlackClock "0:00:43"]
[Board "114"]

1. e4 {[%clk 0:02:54]}  c5 {[%clk 0:02:53]} 2. f4 {[%clk 0:02:52]}  d5 {[%clk 0:02:46]} 3. Bb5+ {[%clk 0:02:51]}  Nc6 {[%clk 0:02:46]} 4. exd5 {[%clk 0:02:50]}  Qxd5 {[%clk 0:02:46]} 5. Nf3 {[%clk 0:02:50]}  Nf6 {[%clk 0:02:42]} 6. Nc3 {[%clk 0:02:49]}  Qd7 {[%clk 0:02:40]} 7. Ne5 {[%clk 0:02:47]}  Qc7 {[%clk 0:02:40]} 8. Bxc6+ {[%clk 0:02:34]}  bxc6 {[%clk 0:02:40]} 9. O-O {[%clk 0:02:33]}  e6 {[%clk 0:02:40]} 10. Qf3 {[%clk 0:02:25]}  Bb7 {[%clk 0:02:39]} 11. Ne4 {[%clk 0:02:23]}  Be7 {[%clk 0:02:35]} 12. d3 {[%clk 0:02:19]}  O-O {[%clk 0:02:27]} 13. Be3 {[%clk 0:02:18]}  Nxe4 {[%clk 0:02:25]} 14. dxe4 {[%clk 0:02:15]}  f6 {[%clk 0:02:19]} 15. Nd3 {[%clk 0:02:12]}  c4 {[%clk 0:02:18]} 16. Nc5 {[%clk 0:02:10]}  Bc8 {[%clk 0:02:09]} 17. Rad1 {[%clk 0:01:58]}  Rb8 {[%clk 0:02:07]} 18. b4 {[%clk 0:01:53]}  Rxb4 {[%clk 0:01:54]} 19. c3 {[%clk 0:01:53]}  Rb2 {[%clk 0:01:38]} 20. Rf2 {[%clk 0:01:40]}  Rxf2 {[%clk 0:01:35]} 21. Qxf2 {[%clk 0:01:40]}  e5 {[%clk 0:01:31]} 22. f5 {[%clk 0:01:39]}  Qa5 {[%clk 0:01:26]} 23. Qd2 {[%clk 0:01:24]}  Bxc5 {[%clk 0:01:23]} 24. Bxc5 {[%clk 0:01:17]}  Qxc5+ {[%clk 0:01:23]} 25. Kh1 {[%clk 0:01:17]}  Ba6 {[%clk 0:01:19]} 26. h4 {[%clk 0:01:05]}  h6 {[%clk 0:01:18]} 27. Kh2 {[%clk 0:00:56]}  Qb6 {[%clk 0:01:05]} 28. Qd6 {[%clk 0:00:52]}  c5 {[%clk 0:01:04]} 29. Qd5+ {[%clk 0:00:50]}  Kh8 {[%clk 0:01:03]} 30. Qd7 {[%clk 0:00:47]}  Bb7 {[%clk 0:00:58]} 31. Rd6 {[%clk 0:00:41]}  Qb2 {[%clk 0:00:49]} 32. Qe7 {[%clk 0:00:39]}  Rg8 {[%clk 0:00:45]} 33. Rd7 {[%clk 0:00:29]}  Bxe4 {[%clk 0:00:44]} 34. Rd8 {[%clk 0:00:21]}  Qxg2# {[%clk 0:00:43]} 0-1


[Site "https://www.chess.com"]

[Event "Titled Tuesday Blitz July 11 Late 2023"]
[White "Carlsen, Magnus"]
[Black "Nakamura, Hikaru"]
[WhiteFideId "1503014"]
[BlackFideId "2016192"]
[WhiteElo "3288"]
[BlackElo "3239"]
[Result "1/2-1/2"]
[Round "11"]
[TimeControl "180+2"]
[Date "2023.07.11"]
[WhiteClock "0:01:17"]
[BlackClock "0:01:14"]
[Board "1"]

1. e4 {[%clk 0:02:59]}  a6 {[%clk 0:02:56]} 2. d4 {[%clk 0:02:57]}  c6 {[%clk 0:02:54]} 3. Bd3 {[%clk 0:02:57]}  d5 {[%clk 0:02:54]} 4. exd5 {[%clk 0:02:57]}  cxd5 {[%clk 0:02:53]} 5. c3 {[%clk 0:02:52]}  Nc6 {[%clk 0:02:53]} 6. h3 {[%clk 0:02:46]}  g6 {[%clk 0:02:45]} 7. Nf3 {[%clk 0:02:46]}  Bf5 {[%clk 0:02:45]} 8. O-O {[%clk 0:02:46]}  Bxd3 {[%clk 0:02:45]} 9. Qxd3 {[%clk 0:02:47]}  e6 {[%clk 0:02:45]} 10. Bf4 {[%clk 0:02:47]}  Bd6 {[%clk 0:02:45]} 11. Bxd6 {[%clk 0:02:46]}  Qxd6 {[%clk 0:02:46]} 12. Nbd2 {[%clk 0:02:45]}  Nf6 {[%clk 0:02:43]} 13. Rfe1 {[%clk 0:02:46]}  Nd7 {[%clk 0:02:43]} 14. Qe3 {[%clk 0:02:45]}  O-O {[%clk 0:02:41]} 15. Ne5 {[%clk 0:02:34]}  Rae8 {[%clk 0:02:37]} 16. Ndf3 {[%clk 0:02:27]}  f6 {[%clk 0:02:36]} 17. Nxd7 {[%clk 0:02:26]}  Qxd7 {[%clk 0:02:37]} 18. Re2 {[%clk 0:02:23]}  Re7 {[%clk 0:02:32]} 19. Rae1 {[%clk 0:02:23]}  Rfe8 {[%clk 0:02:32]} 20. Qf4 {[%clk 0:02:19]}  Kg7 {[%clk 0:02:33]} 21. h4 {[%clk 0:02:18]}  h6 {[%clk 0:02:14]} 22. Qg3 {[%clk 0:02:15]}  Kf7 {[%clk 0:02:13]} 23. Qf4 {[%clk 0:02:15]}  Kg7 {[%clk 0:02:12]} 24. Qg3 {[%clk 0:02:15]}  Nd8 {[%clk 0:01:58]} 25. Nh2 {[%clk 0:01:49]}  Qc7 {[%clk 0:01:54]} 26. Qxc7 {[%clk 0:01:34]}  Rxc7 {[%clk 0:01:55]} 27. Ng4 {[%clk 0:01:35]}  h5 {[%clk 0:01:51]} 28. Ne3 {[%clk 0:01:35]}  Rd7 {[%clk 0:01:51]} 29. Nc2 {[%clk 0:01:34]}  Kf7 {[%clk 0:01:50]} 30. Nb4 {[%clk 0:01:34]}  a5 {[%clk 0:01:49]} 31. Nd3 {[%clk 0:01:35]}  b6 {[%clk 0:01:50]} 32. Nf4 {[%clk 0:01:28]}  Rde7 {[%clk 0:01:50]} 33. Re3 {[%clk 0:01:23]}  Nb7 {[%clk 0:01:14]} 34. Rg3 {[%clk 0:01:23]}  Rg8 {[%clk 0:01:14]} 35. Rge3 {[%clk 0:01:23]}  Rge8 {[%clk 0:01:14]} 36. Rg3 {[%clk 0:01:22]}  Rg8 {[%clk 0:01:14]} 37. Rge3 {[%clk 0:01:17]}  Rge8 {[%clk 0:01:14]} 1/2-1/2


[Site "https://www.chess.com"]

[Event "Titled Tuesday Blitz July 11 Late 2023"]
[White "Bortnyk, Mykola"]
[Black "Leitao, Rafael"]
[WhiteFideId "14120836"]
[BlackFideId "2101246"]
[WhiteElo "3012"]
[BlackElo "2780"]
[Result "1-0"]
[Round "11"]
[TimeControl "180+2"]
[Date "2023.07.11"]
[WhiteClock "0:02:31"]
[BlackClock "0:01:01"]
[Board "6"]

1. e4 {[%clk 0:03:00]}  c5 {[%clk 0:02:58]} 2. c3 {[%clk 0:03:01]}  d5 {[%clk 0:02:58]} 3. exd5 {[%clk 0:03:01]}  Qxd5 {[%clk 0:02:58]} 4. d4 {[%clk 0:03:01]}  g6 {[%clk 0:02:59]} 5. dxc5 {[%clk 0:03:00]}  Qxc5 {[%clk 0:02:58]} 6. Be3 {[%clk 0:03:01]}  Qc7 {[%clk 0:02:56]} 7. Na3 {[%clk 0:03:00]}  a6 {[%clk 0:02:51]} 8. Qb3 {[%clk 0:02:57]}  Bg7 {[%clk 0:02:48]} 9. Bc4 {[%clk 0:02:52]}  e6 {[%clk 0:02:41]} 10. Bb6 {[%clk 0:02:51]}  Qe5+ {[%clk 0:02:32]} 11. Be2 {[%clk 0:02:51]}  Qd5 {[%clk 0:01:53]} 12. Nc4 {[%clk 0:02:39]}  Ne7 {[%clk 0:01:17]} 13. Rd1 {[%clk 0:02:37]}  Qxd1+ {[%clk 0:01:08]} 14. Bxd1 {[%clk 0:02:31]}  O-O {[%clk 0:01:08]} 15. Bc5 {[%clk 0:02:30]}  Nbc6 {[%clk 0:01:06]} 16. Nb6 {[%clk 0:02:30]}  Rb8 {[%clk 0:01:01]} 17. Bd6 {[%clk 0:02:31]} 1-0


[Site "https://www.chess.com"]

[Event "Titled Tuesday Blitz July 11 Late 2023"]
[White "Martinez Alcantara, Jose Eduardo"]
[Black "Chigaev, Maksim"]
[WhiteFideId "3805662"]
[BlackFideId "4108116"]
[WhiteElo "3017"]
[BlackElo "2954"]
[Result "1-0"]
[Round "11"]
[TimeControl "180+2"]
[Date "2023.07.11"]
[WhiteClock "0:01:43"]
[BlackClock "0:00:11"]
[Board "9"]

1. e4 {[%clk 0:03:00]}  e6 {[%clk 0:02:56]} 2. d4 {[%clk 0:03:01]}  d5 {[%clk 0:02:57]} 3. Nd2 {[%clk 0:03:01]}  Be7 {[%clk 0:02:56]} 4. c3 {[%clk 0:03:01]}  Nf6 {[%clk 0:02:55]} 5. Bd3 {[%clk 0:03:01]}  c5 {[%clk 0:02:54]} 6. Ngf3 {[%clk 0:03:01]}  Nc6 {[%clk 0:02:54]} 7. dxc5 {[%clk 0:02:59]}  dxe4 {[%clk 0:02:50]} 8. Nxe4 {[%clk 0:02:59]}  Nxe4 {[%clk 0:02:50]} 9. Bxe4 {[%clk 0:03:00]}  Qxd1+ {[%clk 0:02:50]} 10. Kxd1 {[%clk 0:03:01]}  Bxc5 {[%clk 0:02:50]} 11. Ke2 {[%clk 0:03:02]}  Bd7 {[%clk 0:02:47]} 12. Be3 {[%clk 0:03:02]}  Bxe3 {[%clk 0:02:46]} 13. Kxe3 {[%clk 0:03:03]}  Ke7 {[%clk 0:02:46]} 14. Rhd1 {[%clk 0:03:03]}  Rhd8 {[%clk 0:02:47]} 15. h4 {[%clk 0:03:00]}  h6 {[%clk 0:02:46]} 16. a4 {[%clk 0:02:53]}  b6 {[%clk 0:02:40]} 17. a5 {[%clk 0:02:48]}  bxa5 {[%clk 0:02:30]} 18. Bxc6 {[%clk 0:02:44]}  Bxc6 {[%clk 0:02:31]} 19. Rxd8 {[%clk 0:02:44]}  Kxd8 {[%clk 0:02:30]} 20. Ne5 {[%clk 0:02:42]}  Be8 {[%clk 0:02:27]} 21. Rxa5 {[%clk 0:02:42]}  Kc7 {[%clk 0:02:27]} 22. b4 {[%clk 0:02:40]}  a6 {[%clk 0:02:21]} 23. Rc5+ {[%clk 0:02:38]}  Kb7 {[%clk 0:02:17]} 24. Nc4 {[%clk 0:02:38]}  Rd8 {[%clk 0:02:18]} 25. g4 {[%clk 0:02:31]}  f6 {[%clk 0:02:13]} 26. g5 {[%clk 0:02:27]}  hxg5 {[%clk 0:02:11]} 27. hxg5 {[%clk 0:02:28]}  e5 {[%clk 0:02:11]} 28. Na5+ {[%clk 0:02:21]}  Kb6 {[%clk 0:02:11]} 29. Nc4+ {[%clk 0:02:22]}  Kb7 {[%clk 0:02:12]} 30. gxf6 {[%clk 0:02:21]}  gxf6 {[%clk 0:02:12]} 31. f4 {[%clk 0:02:22]}  exf4+ {[%clk 0:01:33]} 32. Kxf4 {[%clk 0:02:23]}  Rd3 {[%clk 0:01:30]} 33. Na5+ {[%clk 0:02:20]}  Kb8 {[%clk 0:01:21]} 34. Kf5 {[%clk 0:02:17]}  Rd6 {[%clk 0:01:21]} 35. Kf4 {[%clk 0:02:15]}  Rd3 {[%clk 0:01:19]} 36. Nb3 {[%clk 0:02:13]}  Kb7 {[%clk 0:01:06]} 37. Nd4 {[%clk 0:02:13]}  Kb6 {[%clk 0:01:04]} 38. Ke4 {[%clk 0:01:58]}  Rh3 {[%clk 0:00:52]} 39. Kd5 {[%clk 0:01:43]}  Rh5+ {[%clk 0:00:17]} 40. Kd6 {[%clk 0:01:44]}  Rxc5 {[%clk 0:00:17]} 41. bxc5+ {[%clk 0:01:45]}  Kb7 {[%clk 0:00:18]} 42. c6+ {[%clk 0:01:45]}  Kc8 {[%clk 0:00:18]} 43. Nf5 {[%clk 0:01:42]}  Bxc6 {[%clk 0:00:11]} 44. Kxc6 {[%clk 0:01:43]}  a5 {[%clk 0:00:11]} 45. Kb5 {[%clk 0:01:43]} 1-0


[Site "https://www.chess.com"]

[Event "Titled Tuesday Blitz July 11 Late 2023"]
[White "Bolourchifard, Farzad"]
[Black "Svane, Rasmus"]
[WhiteFideId "12510084"]
[BlackFideId "4657101"]
[WhiteElo "2711"]
[BlackElo "2959"]
[Result "0-1"]
[Round "11"]
[TimeControl "180+2"]
[Date "2023.07.11"]
[WhiteClock "0:00:03"]
[BlackClock "0:00:47"]
[Board "10"]

1. d4 {[%clk 0:03:00]}  d5 {[%clk 0:02:59]} 2. Nf3 {[%clk 0:03:01]}  e6 {[%clk 0:02:58]} 3. c4 {[%clk 0:03:01]}  a6 {[%clk 0:02:58]} 4. cxd5 {[%clk 0:03:01]}  exd5 {[%clk 0:02:59]} 5. Nc3 {[%clk 0:03:01]}  Nf6 {[%clk 0:02:59]} 6. Bg5 {[%clk 0:03:02]}  Be6 {[%clk 0:02:59]} 7. e3 {[%clk 0:03:03]}  Nbd7 {[%clk 0:03:00]} 8. Bd3 {[%clk 0:03:03]}  Bd6 {[%clk 0:03:00]} 9. Qc2 {[%clk 0:03:04]}  c6 {[%clk 0:03:00]} 10. O-O-O {[%clk 0:03:02]}  Qc7 {[%clk 0:02:58]} 11. Kb1 {[%clk 0:02:53]}  O-O-O {[%clk 0:02:42]} 12. Na4 {[%clk 0:02:43]}  h6 {[%clk 0:02:39]} 13. Bh4 {[%clk 0:02:43]}  Bg4 {[%clk 0:02:35]} 14. Rc1 {[%clk 0:02:41]}  Kb8 {[%clk 0:02:34]} 15. Nd2 {[%clk 0:02:32]}  Rc8 {[%clk 0:02:22]} 16. f3 {[%clk 0:01:46]}  Be6 {[%clk 0:02:20]} 17. Nb3 {[%clk 0:01:27]}  Ka7 {[%clk 0:02:07]} 18. e4 {[%clk 0:01:15]}  Bf4 {[%clk 0:02:01]} 19. e5 {[%clk 0:00:59]}  Bxc1 {[%clk 0:01:52]} 20. Rxc1 {[%clk 0:01:00]}  g5 {[%clk 0:01:46]} 21. Be1 {[%clk 0:00:57]}  Nh5 {[%clk 0:01:38]} 22. Bf1 {[%clk 0:00:26]}  f6 {[%clk 0:01:37]} 23. exf6 {[%clk 0:00:14]}  Rhf8 {[%clk 0:01:35]} 24. Ba5 {[%clk 0:00:12]}  Qf4 {[%clk 0:01:19]} 25. Ka1 {[%clk 0:00:07]}  Nhxf6 {[%clk 0:01:11]} 26. Nac5 {[%clk 0:00:07]}  Bf5 {[%clk 0:01:10]} 27. Qc3 {[%clk 0:00:04]}  Nxc5 {[%clk 0:00:55]} 28. Nxc5 {[%clk 0:00:04]}  Nd7 {[%clk 0:00:51]} 29. Qb4 {[%clk 0:00:02]}  Nxc5 {[%clk 0:00:49]} 30. Bb6+ {[%clk 0:00:03]}  Ka8 {[%clk 0:00:47]} 31. Bxc5 {[%clk 0:00:03]}  Qxc1# {[%clk 0:00:47]} 0-1


[Site "https://www.chess.com"]